fUSD/lending_fUSD_20250103
["ID","MTS","AMOUNT","RATE_DAILY","PERIOD"]
[347533949,1735905074297,-500.0,0.00010082,2]
[347533950,1735905074307,-500.0,0.00010082,2]
[347533951,1735905074316,-500.0,0.00010082,2]
[347533952,1735905074326,-500.0,0.00010082,2]
[347533953,1735905074336,-500.0,0.00010082,2]
[347533954,1735905074346,-500.0,0.00010082,2]
[347533955,1735905074355,-500.0,0.00010082,2]
[347533956,1735905074365,-500.0,0.00010082,2]
[347533957,1735905074376,-687.48,0.00010082,2]
[347533958,1735905074386,-500.0,0.00010082,2]
[347533959,1735905074395,-558.11,0.00010082,2]
[347533960,1735905074405,-500.0,0.00010082,2]
[347533961,1735905074415,-607.65332772,0.00010082,2]
[347533962,1735905074424,-464.66541861,0.00010082,2]
[347533963,1735905074435,-1230.45,0.00010082,2]
[347533964,1735905074445,-500.0,0.00010082,2]
[347533965,1735905074455,-500.0,0.00010082,2]
[347533966,1735905074466,-500.0,0.00010082,2]
[347533967,1735905074475,-1029.03,0.00010082,2]
[347533968,1735905074485,-500.0,0.00010082,2]
[347533969,1735905074495,-500.0,0.00010082,2]
[347533970,1735905074505,-500.0,0.00010082,2]
[347533971,1735905074516,-500.0,0.00010082,2]
[347533972,1735905074526,-500.0,0.00010082,2]
[347533973,1735905074535,-513.1,0.00010082,2]
[347533974,1735905074544,-500.0,0.00010082,2]
[347533975,1735905074555,-633.22,0.00010082,2]
[347533976,1735905074564,-500.0,0.00010082,2]
[347533977,1735905074574,-722.34,0.00010082,2]
[347533978,1735905074582,-1101.9,0.00010082,2]
[347533979,1735905074591,-500.0,0.00010082,2]
[347533980,1735905074602,-587.25,0.00010082,2]
[347533981,1735905074612,-1875.98,0.00010082,2]
[347533982,1735905074622,-500.0,0.00010082,2]
[347533983,1735905074632,-1339.24,0.00010082,2]
[347533984,1735905074642,-500.0,0.00010082,2]
[347533985,1735905074651,-934.77,0.00010082,2]
[347533986,1735905074660,-500.0,0.00010082,2]
[347533987,1735905074670,-1088.66,0.00010082,2]
[347533988,1735905074680,-832.16,0.00010082,2]
[347533989,1735905074690,-500.0,0.00010082,2]
[347533990,1735905074700,-1061.28,0.00010082,2]
[347533991,1735905074710,-656.83,0.00010082,2]
[347533992,1735905074720,-1137.49,0.00010082,2]
[347533993,1735905074729,-500.0,0.00010082,2]
[347533994,1735905074740,-980.52,0.00010082,2]
[347533995,1735905074749,-500.0,0.00010082,2]
[347533996,1735905074758,-644.17,0.00010082,2]
[347533997,1735905074768,-500.0,0.00010082,2]
[347533998,1735905074777,-1870.3,0.00010082,2]
[347533999,1735905074787,-500.0,0.00010082,2]
[347534000,1735905074796,-775.87,0.00010082,2]
[347534001,1735905074806,-840.61,0.00010082,2]
[347534002,1735905074815,-500.0,0.00010082,2]
[347534003,1735905074824,-1333.63,0.00010082,2]
[347534004,1735905074833,-1710.1,0.00010082,2]
[347534005,1735905074843,-500.0,0.00010082,2]
[347534006,1735905074852,-789.29,0.00010082,2]
[347534007,1735905074861,-500.0,0.00010082,2]
[347534008,1735905074870,-500.0,0.00010082,2]
[347534009,1735905074880,-1577.96,0.00010082,2]
[347534010,1735905074888,-500.0,0.00010082,2]
[347534011,1735905074897,-792.2,0.00010082,2]
[347534012,1735905074906,-1054.64,0.00010082,2]
[347534013,1735905074915,-500.0,0.00010082,2]
[347534014,1735905074924,-500.0,0.00010082,2]
[347534015,1735905074933,-500.0,0.00010082,2]
[347534016,1735905074943,-1497.47,0.00010082,2]
[347534017,1735905074951,-829.38,0.00010082,2]
[347534018,1735905074960,-500.0,0.00010082,2]
[347534019,1735905074969,-529.3659743,0.00010082,2]
[347534020,1735905074978,-987.75,0.00010082,2]
[347534021,1735905074987,-529.57,0.00010082,2]
[347534022,1735905074996,-500.0,0.00010082,2]
[347534023,1735905075005,-1111.14,0.00010082,2]
[347534024,1735905075015,-833.34,0.00010082,2]
[347534025,1735905075024,-1274.61,0.00010082,2]
[347534026,1735905075033,-766.68,0.00010082,2]
[347534027,1735905075042,-1142.18,0.00010082,2]
[347534028,1735905075051,-500.0,0.00010082,2]
[347534029,1735905075061,-681.35,0.00010082,2]
[347534030,1735905075069,-1062.57,0.00010082,2]
[347534031,1735905075078,-3523.17,0.00010082,2]
[347534032,1735905075087,-500.0,0.00010082,2]
[347534033,1735905075097,-831.69,0.00010082,2]
[347534034,1735905075106,-1740.72,0.00010082,2]
[347534035,1735905075115,-990.89,0.00010082,2]
[347534036,1735905075124,-716.2,0.00010082,2]
[347534037,1735905075133,-500.0,0.00010082,2]
[347534038,1735905075143,-519.04,0.00010082,2]
[347534039,1735905075152,-500.0,0.00010082,2]
[347534040,1735905075162,-1262.65,0.00010082,2]
[347534041,1735905075171,-1231.96,0.00010082,2]
[347534042,1735905075181,-587.5,0.00010082,2]
[347534043,1735905075190,-1734.76,0.00010082,2]
[347534044,1735905075200,-2349.32,0.00010082,2]
[347534045,1735905075209,-941.43,0.00010082,2]
[347534046,1735905075218,-552.81,0.00010082,2]
[347534047,1735905075227,-860.17,0.00010082,2]
[347534048,1735905075237,-500.0,0.00010082,2]
[347534049,1735905075246,-1107.49,0.00010082,2]
[347534050,1735905075255,-693.65,0.00010082,2]
[347534051,1735905075269,-619.56,0.00010082,2]
[347534052,1735905075278,-913.88,0.00010082,2]
[347534053,1735905075287,-500.0,0.00010082,2]
[347534054,1735905075296,-2450.4,0.00010082,2]
[347534055,1735905075306,-1659.07,0.00010082,2]
[347534056,1735905075316,-500.0,0.00010082,2]
[347534057,1735905075325,-500.0,0.00010082,2]
[347534058,1735905075334,-1018.08,0.00010082,2]
[347534059,1735905075343,-1004.12,0.00010082,2]
[347534060,1735905075352,-500.0,0.00010082,2]
[347534061,1735905075361,-552.62,0.00010082,2]
[347534062,1735905075370,-569.9,0.00010082,2]
[347534063,1735905075380,-928.8,0.00010082,2]
[347534064,1735905075389,-500.0,0.00010082,2]
[347534065,1735905075398,-500.0,0.00010082,2]
[347534066,1735905075409,-1224.6,0.00010082,2]
[347534067,1735905075418,-2134.23,0.00010082,2]
[347534068,1735905075427,-500.0,0.00010082,2]
[347534069,1735905075437,-500.0,0.00010082,2]
[347534070,1735905075446,-956.63,0.00010082,2]
[347534071,1735905075455,-974.42,0.00010082,2]
[347534072,1735905075465,-500.0,0.00010082,2]
[347534073,1735905075474,-1772.47,0.00010082,2]
[347534074,1735905075483,-621.71,0.00010082,2]
[347534075,1735905075493,-683.75,0.00010082,2]
[347534076,1735905075502,-638.46,0.00010082,2]
[347534077,1735905075511,-500.0,0.00010082,2]
[347534078,1735905075523,-1085.2,0.00010082,2]
[347534079,1735905075532,-1719.1,0.00010082,2]
[347534080,1735905075542,-1059.67,0.00010082,2]
[347534081,1735905075551,-983.59,0.00010082,2]
[347534082,1735905075561,-500.0,0.00010082,2]
[347534083,1735905075570,-500.0,0.00010082,2]
[347534084,1735905075579,-1242.31,0.00010082,2]
[347534085,1735905075588,-578.44,0.00010082,2]
[347534086,1735905075597,-1069.9,0.00010082,2]
[347534087,1735905075606,-2360.45,0.00010082,2]
[347534088,1735905075615,-500.0,0.00010082,2]
[347534089,1735905075624,-1524.62,0.00010082,2]
[347534090,1735905075633,-809.15,0.00010082,2]
[347534091,1735905075642,-541.29,0.00010082,2]
[347534092,1735905075651,-1192.98,0.00010082,2]
[347534093,1735905075660,-500.0,0.00010082,2]
[347534094,1735905075669,-500.0,0.00010082,2]
[347534095,1735905075678,-669.28,0.00010082,2]
[347534096,1735905075688,-1030.19,0.00010082,2]
[347534097,1735905075696,-548.02,0.00010082,2]
[347534098,1735905075706,-500.0,0.00010082,2]
[347534099,1735905075715,-500.0,0.00010082,2]
[347534100,1735905075724,-961.41,0.00010082,2]
[347534101,1735905075733,-809.16,0.00010082,2]
[347534102,1735905075742,-1136.56,0.00010082,2]
[347534103,1735905075752,-898.07,0.00010082,2]
[347534104,1735905075761,-606.66,0.00010082,2]
[347534105,1735905075773,-1141.11,0.00010082,2]
[347534106,1735905075783,-794.22,0.00010082,2]
[347534107,1735905075793,-511.36,0.00010082,2]
[347534108,1735905075803,-743.25,0.00010082,2]
[347534109,1735905075812,-536.15,0.00010082,2]
[347534110,1735905075822,-3174.83,0.00010082,2]
[347534111,1735905075831,-500.0,0.00010082,2]
[347534112,1735905075841,-1136.09,0.00010082,2]
[347534113,1735905075850,-1014.14,0.00010082,2]
[347534114,1735905075859,-1535.48,0.00010082,2]
[347534115,1735905075868,-500.0,0.00010082,2]
[347534116,1735905075878,-1600.87,0.00010082,2]
[347534117,1735905075888,-2296.25,0.00010082,2]
[347534118,1735905075898,-1633.82,0.00010082,2]
[347534119,1735905075907,-1890.84,0.00010082,2]
[347534120,1735905075916,-500.0,0.00010082,2]
[347534121,1735905075926,-790.71,0.00010082,2]
[347534122,1735905075935,-500.0,0.00010082,2]
[347534123,1735905075944,-3401.53,0.00010082,2]
[347534124,1735905075953,-574.6,0.00010082,2]
[347534125,1735905075962,-2724.04,0.00010082,2]
[347534126,1735905075971,-1377.08,0.00010082,2]
[347534127,1735905075980,-1201.48,0.00010082,2]
[347534128,1735905075989,-687.51,0.00010082,2]
[347534129,1735905075999,-1530.27,0.00010082,2]
[347534130,1735905076010,-815.31,0.00010082,2]
[347534131,1735905076020,-552.24,0.00010082,2]
[347534132,1735905076029,-1062.24,0.00010082,2]
[347534133,1735905076038,-2705.9,0.00010082,2]
[347534134,1735905076047,-1089.02,0.00010082,2]
[347534135,1735905076056,-900.41,0.00010082,2]
[347534136,1735905076065,-512.87,0.00010082,2]
[347534137,1735905076075,-809.39,0.00010082,2]
[347534138,1735905076084,-500.0,0.00010082,2]
[347534139,1735905076093,-500.0,0.00010082,2]
[347534140,1735905076102,-1697.57,0.00010082,2]
[347534141,1735905076111,-1406.86,0.00010082,2]
[347534142,1735905076120,-1445.48,0.00010082,2]
[347534143,1735905076129,-818.71,0.00010082,2]
[347534144,1735905076138,-500.0,0.00010082,2]
[347534145,1735905076146,-1607.88,0.00010082,2]
[347534146,1735905076155,-746.95,0.00010082,2]
[347534147,1735905076164,-848.07,0.00010082,2]
[347534148,1735905076175,-2199.69,0.00010082,2]
[347534149,1735905076185,-944.93,0.00010082,2]
[347534150,1735905076194,-3264.07,0.00010082,2]
[347534151,1735905076203,-1278.63,0.00010082,2]
[347534152,1735905076214,-500.0,0.00010082,2]
[347534153,1735905076225,-1536.3,0.00010082,2]
[347534154,1735905076234,-1468.96,0.00010082,2]
[347534155,1735905076243,-500.0,0.00010082,2]
[347534156,1735905076253,-500.0,0.00010082,2]
[347534157,1735905076264,-670.94,0.00010082,2]
[347534158,1735905076276,-2530.56,0.00010082,2]
[347534159,1735905076285,-858.59,0.00010082,2]
[347534160,1735905076295,-1698.46,0.00010082,2]
[347534161,1735905076304,-1194.68,0.00010082,2]
[347534162,1735905076313,-500.0,0.00010082,2]
[347534163,1735905076324,-500.0,0.00010082,2]
[347534164,1735905076334,-560.77,0.00010082,2]
[347534165,1735905076344,-652.66,0.00010082,2]
[347534166,1735905076354,-502.24,0.00010082,2]
[347534167,1735905076363,-1145.7,0.00010082,2]
[347534168,1735905076372,-385.32859368,0.00010082,2]
[347534169,1735905076392,-4231.80140632,0.00010082,2]
[347534170,1735905076403,-598.97,0.00010082,2]
[347534171,1735905076413,-812.62,0.00010082,2]
[347534172,1735905076422,-3544.79,0.00010082,2]
[347534173,1735905076431,-870.08,0.00010082,2]
[347534174,1735905076440,-500.0,0.00010082,2]
[347534175,1735905076451,-500.0,0.00010082,2]
[347534176,1735905076461,-500.0,0.00010082,2]
[347534177,1735905076470,-500.0,0.00010082,2]
[347534178,1735905076479,-1204.78,0.00010082,2]
[347534179,1735905076488,-5179.38,0.00010082,2]
[347534180,1735905076496,-966.36324523,0.00010082,2]
[347534181,1735905076508,-3977.33999999,0.00010082,2]
[347534182,1735905076520,-297.52890803,0.00010082,2]
[347534183,1735905076531,-399.4854597,0.00010082,2]
[347534184,1735905076541,-810.67238705,0.00010082,2]
[347534185,1735905076550,-227.2318923,0.00010082,2]
[347534186,1735905076582,-431.8681077,0.00010082,2]
[347534187,1735905076591,-43.9481323,0.00010082,2]
[347534188,1735905076601,-456.0518677,0.00010082,2]
[347534189,1735905076610,-446.0654098,0.00010083,2]
[347534190,1735905076787,-29.7476651,8.985e-05,2]
[347534191,1735905076799,-470.2523349,8.985e-05,2]
[347534192,1735905076809,-64.7476651,9.26e-05,2]
[347534193,1735905076820,-157.2723349,9.26e-05,2]
[347534194,1735905076830,-53.9345902,0.00010083,2]
[347534195,1735905076840,-470.79062963,0.00010083,2]
[347534196,1735905076853,-29.20937037,0.00010083,2]
[347534197,1735905076862,-500.0,0.00010083,2]
[347534198,1735905076871,-500.0,0.00010083,2]
[347534199,1735905076882,-500.0,0.00010083,2]
[347534200,1735905076893,-548.18,0.00010083,2]
[347534201,1735905076903,-500.0,0.00010083,2]
[347534202,1735905076912,-500.0,0.00010083,2]
[347534203,1735905076922,-500.0,0.00010083,2]
[347534204,1735905076931,-667.35,0.00010083,2]
[347534205,1735905076941,-142.20271513,0.00010083,2]
[347534206,1735905076952,-357.79728487,0.00010083,2]
[347534207,1735905076961,-659.32,0.00010083,2]
[347534208,1735905076971,-500.0,0.00010083,2]
[347534209,1735905076981,-745.52,0.00010083,2]
[347534210,1735905076990,-500.0,0.00010083,2]
[347534211,1735905077000,-662.37,0.00010083,2]
[347534212,1735905077010,-500.0,0.00010083,2]
[347534213,1735905077019,-500.0,0.00010083,2]
[347534214,1735905077029,-500.0,0.00010083,2]
[347534215,1735905077038,-599.99,0.00010083,2]
[347534216,1735905077048,-508.14,0.00010083,2]
[347534217,1735905077058,-657.61,0.00010083,2]
[347534218,1735905077067,-500.0,0.00010083,2]
[347534219,1735905077077,-500.0,0.00010083,2]
[347534220,1735905077087,-453.13421239,0.00010083,2]
[347534221,1735905077100,-85.38578761,0.00010083,2]
[347534222,1735905077110,-727.58,0.00010083,2]
[347534223,1735905077119,-265.91607797,0.00010083,2]
[347534224,1735905077139,-278.61392203,0.00010083,2]
[347534225,1735905077148,-932.72,0.00010083,2]
[347534226,1735905077157,-500.0,0.00010083,2]
[347534227,1735905077167,-626.35,0.00010083,2]
[347534228,1735905077177,-500.0,0.00010083,2]
[347534229,1735905077186,-625.8,0.00010083,2]
[347534230,1735905077196,-500.0,0.00010083,2]
[347534231,1735905077205,-6387.27,0.00010083,2]
[347534232,1735905077215,-724.34,0.00010083,2]
[347534233,1735905077225,-500.0,0.00010083,2]
[347534234,1735905077235,-2441.57,0.00010083,2]
[347534235,1735905077245,-656.31,0.00010083,2]
[347534236,1735905077255,-500.0,0.00010083,2]
[347534237,1735905077270,-603.3,0.00010083,2]
[347534238,1735905077280,-612.51,0.00010083,2]
[347534239,1735905077290,-1072.45,0.00010083,2]
[347534240,1735905077300,-500.0,0.00010083,2]
[347534241,1735905077309,-2853.83,0.00010083,2]
[347534242,1735905077319,-500.0,0.00010083,2]
[347534243,1735905077329,-724.26,0.00010083,2]
[347534244,1735905077338,-612.23,0.00010083,2]
[347534245,1735905077349,-963.12,0.00010083,2]
[347534246,1735905077359,-1236.86,0.00010083,2]
[347534247,1735905077369,-500.0,0.00010083,2]
[347534248,1735905077378,-638.29,0.00010083,2]
[347534249,1735905077388,-500.0,0.00010083,2]
[347534250,1735905077398,-3108.79,0.00010083,2]
[347534251,1735905077408,-1457.26,0.00010083,2]
[347534252,1735905077418,-4232.15,0.00010083,2]
[347534253,1735905077427,-500.0,0.00010083,2]
[347534254,1735905077437,-500.0,0.00010083,2]
[347534255,1735905077447,-2176.07,0.00010083,2]
[347534256,1735905077457,-1547.35,0.00010083,2]
[347534257,1735905077467,-511.57,0.00010083,2]
[347534258,1735905077476,-2000.52,0.00010083,2]
[347534259,1735905077486,-4008.68,0.00010083,2]
[347534260,1735905077496,-2183.1,0.00010083,2]
[347534261,1735905077505,-8157.96,0.00010083,2]
[347534262,1735905077515,-5100.27,0.00010083,2]
[347534263,1735905077526,-6239.58,0.00010083,2]
[347534264,1735905077536,-7669.36,0.00010083,2]
[347534265,1735905077546,-2697.6,0.00010083,2]
[347534266,1735905077556,-5087.72,0.00010083,2]
[347534267,1735905077565,-2588.56,0.00010083,2]
[347534268,1735905077575,-914.32,0.00010083,2]
[347534269,1735905077585,-963.91,0.00010083,2]
[347534270,1735905077595,-1466.89,0.00010083,2]
[347534271,1735905077604,-1249.2,0.00010083,2]
[347534272,1735905077614,-2475.57,0.00010083,2]
[347534273,1735905077624,-5613.04,0.00010083,2]
[347534274,1735905077634,-7308.25,0.00010083,2]
[347534275,1735905077644,-3686.11,0.00010083,2]
[347534276,1735905077654,-2187.21,0.00010083,2]
[347534277,1735905077664,-501.39,0.00010083,2]
[347534278,1735905077675,-184.946,0.000101,2]
[347534279,1735905077685,-3597.486,0.000101,2]
[347534280,1735905077696,-273.38,0.00010137,2]
[347534281,1735905077706,-793.36,0.00010137,2]
[347534282,1735905077716,-500.0,0.00010218,2]
[347534283,1735905077726,-4834.05768146,0.00010254,2]
[347534284,1735905077736,-260.67357754,0.00010255,2]
[347534285,1735905077746,-1000.0,0.00010274,2]
[347534286,1735905077755,-1572.18,0.00010354,2]
[347534287,1735905077765,-1238.78,0.00010354,2]
[347534288,1735905077779,-2902.69,0.00010354,2]
[347534289,1735905077789,-500.0,0.00010354,2]
[347534290,1735905077799,-2241.16,0.00010354,2]
[347534291,1735905077808,-1257.51,0.00010354,2]
[347534292,1735905077818,-2799.09,0.00010354,2]
[347534293,1735905077828,-5716.7,0.00010354,2]
[347534294,1735905077838,-3371.76,0.00010354,2]
[347534295,1735905077848,-2026.89,0.00010354,2]
[347534296,1735905077859,-2462.966259,0.00010354,2]
[347534297,1735905077869,-6886.97,0.00010354,2]
[347534298,1735905077879,-3347.82,0.00010354,2]
[347534299,1735905077889,-2504.290482,0.00010354,2]
[347534300,1735905077900,-1591.88,0.00010354,2]
[347534301,1735905077910,-2556.56,0.00010354,2]
[347534302,1735905077920,-152.131169,0.00010354,2]
[347534303,1735905077930,-841.72,0.00010354,2]
[347534304,1735905077940,-2495.70687427,0.00010354,2]
[347534305,1735905077953,-397.46390257,0.00010354,2]
[347534306,1735905077973,-3628.13922316,0.00010354,2]
[347534307,1735905077982,-2473.72,0.00010354,2]
[347534308,1735905077991,-3947.86,0.00010354,2]
[347534309,1735905078001,-1141.7,0.00010354,2]
[347534310,1735905078011,-2767.2,0.00010354,2]
[347534311,1735905078021,-2921.51,0.00010354,2]
[347534312,1735905078031,-4005.05,0.00010354,2]
[347534313,1735905078041,-2328.37,0.00010354,2]
[347534314,1735905078051,-5514.99,0.00010354,2]
[347534315,1735905078061,-759.07,0.00010354,2]
[347534316,1735905078071,-3765.97,0.00010354,2]
[347534317,1735905078080,-3732.91,0.00010354,2]
[347534318,1735905078090,-6072.5,0.00010354,2]
[347534319,1735905078100,-10453.95,0.00010354,2]
[347534320,1735905078110,-2970.38,0.00010354,2]
[347534321,1735905078119,-886.53,0.00010354,2]
[347534322,1735905078130,-8562.83,0.00010354,2]
[347534323,1735905078140,-3453.22,0.00010354,2]
[347534324,1735905078151,-523.93,0.00010354,2]
[347534325,1735905078160,-1498.51,0.00010354,2]
[347534326,1735905078171,-901.5,0.00010354,2]
[347534327,1735905078181,-500.0,0.00010354,2]
[347534328,1735905078191,-565.2,0.00010354,2]
[347534329,1735905078201,-500.0,0.00010354,2]
[347534330,1735905078211,-500.0,0.00010355,2]
[347534331,1735905078221,-615.15,0.00010355,2]
[347534332,1735905078231,-500.0,0.00010355,2]
[347534333,1735905078241,-500.0,0.00010355,2]
[347534334,1735905078251,-827.89,0.00010355,2]
[347534335,1735905078262,-580.61,0.00010355,2]
[347534336,1735905078274,-512.24,0.00010355,2]
[347534337,1735905078284,-500.0,0.00010355,2]
[347534338,1735905078294,-673.25,0.00010355,2]
[347534339,1735905078304,-500.0,0.00010355,2]
[347534340,1735905078313,-500.0,0.00010355,2]
[347534341,1735905078323,-500.0,0.00010355,2]
[347534342,1735905078395,-778.45,0.00010355,2]
[347534343,1735905078406,-500.0,0.00010355,2]
[347534344,1735905078415,-586.2,0.00010355,2]
[347534345,1735905078424,-1181.02,0.00010355,2]
[347534346,1735905078434,-500.0,0.00010355,2]
[347534347,1735905078444,-525.08215104,0.00010355,2]
[347534348,1735905078454,-1092.98,0.00010355,2]
[347534349,1735905078464,-500.0,0.00010355,2]
[347534350,1735905078474,-500.0,0.00010355,2]
[347534351,1735905078484,-500.0,0.00010355,2]
[347534352,1735905078493,-705.4,0.00010355,2]
[347534353,1735905078503,-1451.9,0.00010355,2]
[347534354,1735905078513,-1058.02,0.00010355,2]
[347534355,1735905078523,-1119.68,0.00010355,2]
[347534356,1735905078532,-1408.28,0.00010355,2]
[347534357,1735905078542,-1153.1,0.00010355,2]
[347534358,1735905078551,-941.5,0.00010355,2]
[347534359,1735905078560,-889.02,0.00010355,2]
[347534360,1735905078570,-1037.1,0.00010355,2]
[347534361,1735905078579,-697.9,0.00010355,2]
[347534362,1735905078589,-500.0,0.00010355,2]
[347534363,1735905078599,-500.0,0.00010355,2]
[347534364,1735905078608,-500.0,0.00010355,2]
[347534365,1735905078617,-722.95,0.00010355,2]
[347534366,1735905078627,-595.42,0.00010355,2]
[347534367,1735905078636,-717.92,0.00010355,2]
[347534368,1735905078646,-500.0,0.00010355,2]
[347534369,1735905078656,-500.0,0.00010355,2]
[347534370,1735905078666,-1228.8,0.00010355,2]
[347534371,1735905078676,-500.0,0.00010355,2]
[347534372,1735905078686,-1034.58,0.00010355,2]
[347534373,1735905078695,-528.65,0.00010355,2]
[347534374,1735905078705,-500.62,0.00010355,2]
[347534375,1735905078715,-842.73,0.00010355,2]
[347534376,1735905078724,-520.8,0.00010355,2]
[347534377,1735905078734,-1367.71,0.00010355,2]
[347534378,1735905078744,-1049.73,0.00010355,2]
[347534379,1735905078754,-500.0,0.00010355,2]
[347534380,1735905078764,-1255.86,0.00010355,2]
[347534381,1735905078774,-500.0,0.00010355,2]
[347534382,1735905078783,-500.0,0.00010355,2]
[347534383,1735905078793,-500.0,0.00010355,2]
[347534384,1735905078802,-500.0,0.00010355,2]
[347534385,1735905078811,-500.0,0.00010355,2]
[347534386,1735905078821,-500.0,0.00010355,2]
[347534387,1735905078831,-509.92,0.00010355,2]
[347534388,1735905078840,-558.07,0.00010355,2]
[347534389,1735905078850,-500.0,0.00010355,2]
[347534390,1735905078860,-500.0,0.00010355,2]
[347534391,1735905078869,-500.0,0.00010355,2]
[347534392,1735905078879,-500.0,0.00010355,2]
[347534393,1735905078888,-500.0,0.00010355,2]
[347534394,1735905078898,-500.0,0.00010355,2]
[347534395,1735905078908,-1431.51,0.00010355,2]
[347534396,1735905078918,-1133.96,0.00010355,2]
[347534397,1735905078928,-785.88,0.00010355,2]
[347534398,1735905078938,-504.9,0.00010355,2]
[347534399,1735905078947,-500.0,0.00010355,2]
[347534400,1735905078957,-500.0,0.00010355,2]
[347534401,1735905078966,-500.0,0.00010355,2]
[347534402,1735905078975,-737.37,0.00010355,2]
[347534403,1735905078985,-1425.68,0.00010355,2]
[347534404,1735905078994,-500.0,0.00010355,2]
[347534405,1735905079003,-500.0,0.00010355,2]
[347534406,1735905079012,-620.53,0.00010355,2]
[347534407,1735905079023,-732.36,0.00010355,2]
[347534408,1735905079032,-754.58,0.00010355,2]
[347534409,1735905079338,-2999.23,0.00010355,2]
[347534410,1735905079349,-1531.82,0.00010355,2]
[347534411,1735905079359,-611.72,0.00010355,2]
[347534412,1735905079369,-500.0,0.00010355,2]
[347534413,1735905079379,-852.64,0.00010355,2]
[347534414,1735905079390,-500.0,0.00010355,2]
[347534415,1735905079399,-500.0,0.00010355,2]
[347534416,1735905079409,-575.7,0.00010355,2]
[347534417,1735905079419,-500.0,0.00010355,2]
[347534418,1735905079429,-1088.05,0.00010355,2]
[347534419,1735905079439,-500.0,0.00010355,2]
[347534420,1735905079449,-685.93,0.00010355,2]
[347534421,1735905079459,-500.0,0.00010355,2]
[347534422,1735905079468,-500.0,0.00010355,2]
[347534423,1735905079478,-500.0,0.00010355,2]
[347534424,1735905079487,-505.48,0.00010355,2]
[347534425,1735905079497,-519.46718008,0.00010355,2]
[347534426,1735905079507,-669.94,0.00010355,2]
[347534427,1735905079517,-500.0,0.00010355,2]
[347534428,1735905079527,-500.0,0.00010355,2]
[347534429,1735905079537,-500.0,0.00010355,2]
[347534430,1735905079547,-1439.98,0.00010355,2]
[347534431,1735905079556,-525.09,0.00010355,2]
[347534432,1735905079565,-568.23,0.00010355,2]
[347534433,1735905079575,-500.0,0.00010355,2]
[347534434,1735905079585,-500.0,0.00010355,2]
[347534435,1735905079596,-500.0,0.00010355,2]
[347534436,1735905079606,-500.0,0.00010355,2]
[347534437,1735905079616,-656.99,0.00010355,2]
[347534438,1735905079626,-577.33,0.00010355,2]
[347534439,1735905079637,-1033.47,0.00010355,2]
[347534440,1735905079647,-1430.89,0.00010355,2]
[347534441,1735905079656,-811.19,0.00010355,2]
[347534442,1735905079666,-500.0,0.00010355,2]
[347534443,1735905079675,-594.45,0.00010355,2]
[347534444,1735905079685,-500.0,0.00010355,2]
[347534445,1735905079695,-613.98,0.00010355,2]
[347534446,1735905079705,-862.41,0.00010355,2]
[347534447,1735905079715,-500.0,0.00010355,2]
[347534448,1735905079725,-500.0,0.00010355,2]